bitfinex-derivatives/quotes_ETHF0:USTF0_20250404
["timestamp","ask_amount","ask_price","bid_price","bid_amount"]
[1743725457474,10.58937289,1817.6,1817.5,44.74763]
[1743725457669,8.08937289,1817.6,1817.5,44.74763]
[1743725457977,8.08937115,1817.6,1817.5,44.74763]
[1743725458176,9.52737115,1817.6,1817.5,44.74763]
[1743725458377,12.02737115,1817.6,1817.5,44.74763]
[1743725458970,4.40937115,1817.6,1817.5,44.74763]
[1743725459177,8.08937115,1817.6,1817.5,45.44923]
[1743725460878,8.08936552,1817.6,1817.5,45.44923]
[1743725461473,8.08936552,1817.6,1817.5,44.74763]
[1743725461673,12.03206552,1817.6,1817.5,44.74763]
[1743725461875,12.03206552,1817.6,1817.5,22.11970158]
[1743725462374,12.03207774,1817.6,1817.5,22.11970158]
[1743725463969,12.03207825,1817.6,1817.5,22.11970158]
[1743725464169,8.08937825,1817.6,1817.5,22.11970158]
[1743725466482,4.40937825,1817.6,1817.5,22.11970158]
[1743725466675,8.08937825,1817.6,1817.5,22.11970158]
[1743725467181,8.08936669,1817.6,1817.5,22.11970158]
[1743725468779,8.08936355,1817.6,1817.5,22.11970158]
[1743725471485,8.08936355,1817.6,1817.5,23.57050158]
[1743725472183,3.30859355,1817.6,1817.5,24.67133158]
[1743725472384,2.5460404,1817.6,1817.5,24.67133158]
[1743725473386,3.68,1817.7,1817.6,1.10077]
[1743725473587,3.6882404,1817.7,1817.6,1.4748]
[1743725473890,3.6882404,1817.7,1817.6,2.57557]
[1743725474090,3.6882404,1817.7,1817.6,1.4748]
[1743725474287,0.0082404,1817.7,1817.6,5.07557]
[1743725475191,1.1089404,1817.7,1817.6,3.9748]
[1743725475390,1.1089404,1817.7,1817.6,1.4748]
[1743725479290,1.1089404,1817.7,1817.6,5.07557]
[1743725479489,4.7889404,1817.7,1817.6,5.07557]
[1743725480189,4.7889404,1817.7,1817.6,3.9748]
[1743725480793,3.6882404,1817.7,1817.6,5.07557]
[1743725480991,4.7889404,1817.7,1817.6,1.4748]
[1743725481684,3.6882404,1817.7,1817.6,2.57557]
[1743725481888,4.7889404,1817.7,1817.6,1.4748]
[1743725482790,3.6882404,1817.7,1817.6,2.57557]
[1743725483595,4.7889404,1817.7,1817.6,2.57557]
[1743725484599,4.7889404,1817.7,1817.6,1.4748]
[1743725485395,3.6882404,1817.7,1817.6,2.57557]
[1743725485894,3.6882404,1817.7,1817.6,24.69527158]
[1743725486495,1.10057,1818.0,1817.9,1.10058]
[1743725486797,4.87208936,1818.0,1817.9,1.10058]
[1743725487191,4.87209022,1818.0,1817.9,1.4153]
[1743725487796,8.07989022,1818.0,1817.9,1.4153]
[1743725488701,1.10064,1817.8,1817.7,0.687]
[1743725488893,1.10064,1817.8,1817.7,2.2091]
[1743725491203,1.1007,1817.7,1817.6,22.11970158]
[1743725491502,7.08783337,1817.7,1817.6,22.11970158]
[1743725492101,7.08784729,1817.7,1817.6,22.11970158]
[1743725493603,7.08784889,1817.7,1817.6,22.11970158]
[1743725493806,4.87224889,1817.7,1817.6,22.11970158]
[1743725494297,6.29644889,1817.7,1817.6,22.11970158]
[1743725495094,6.29644822,1817.7,1817.6,22.11970158]
[1743725495291,4.87224822,1817.7,1817.6,22.11970158]
[1743725496704,4.87224106,1817.7,1817.6,22.11970158]
[1743725497302,6.35014106,1817.7,1817.6,22.11970158]
[1743725499703,1.19324106,1817.7,1817.6,22.11970158]
[1743725499904,6.35014106,1817.7,1817.6,22.11970158]
[1743725501300,6.35014106,1817.7,1817.6,22.80830158]
[1743725501502,2.67114106,1817.7,1817.6,22.80830158]
[1743725501702,4.87224106,1817.7,1817.6,22.80830158]
[1743725501905,4.87224106,1817.7,1817.6,24.30790158]
[1743725503613,6.35044106,1817.7,1817.6,24.30790158]
[1743725505806,6.35044302,1817.7,1817.6,24.30790158]
[1743725506310,1.19324302,1817.7,1817.6,26.80790158]
[1743725506611,4.7797,1817.7,1817.6,26.80790158]
[1743725507011,3.679,1817.7,1817.6,27.90867158]
[1743725508411,4.7797,1817.7,1817.6,27.90867158]
[1743725510313,4.7797,1817.7,1817.6,26.80790158]
[1743725510515,4.7797,1817.7,1817.6,27.90867158]
[1743725511803,4.7797,1817.7,1817.6,26.80790158]
[1743725512312,4.7797,1817.7,1817.6,27.90867158]
[1743725512713,3.679,1817.7,1817.6,27.90867158]
[1743725516316,6.8868,1817.9,1817.8,1.10064]
[1743725516820,4.77958,1817.9,1817.8,3.18514]
[1743725517720,4.77958,1817.9,1817.8,2.0845]
[1743725518319,4.77958,1817.9,1817.8,1.3891]
[1743725518517,1.1007,1817.7,1817.4,0.0082404]
[1743725518718,3.2078,1817.5,1817.4,3.2557304]
[1743725519813,4.30863,1817.5,1817.4,2.1548404]
[1743725520112,5.70193,1817.5,1817.4,2.1548404]
[1743725520311,5.79448132,1817.5,1817.4,2.1548404]
[1743725521022,5.70193,1817.5,1817.4,2.1548404]
[1743725521221,4.6011,1817.5,1817.4,3.2557304]
[1743725521416,3.2078,1817.5,1817.4,3.2557304]
[1743725522420,3.30034967,1817.5,1817.4,3.2557304]
[1743725522829,3.2078,1817.5,1817.4,2.1548404]
[1743725523120,3.30034994,1817.5,1817.4,2.1548404]
[1743725523523,3.30034952,1817.5,1817.4,2.1548404]
[1743725524023,4.40117952,1817.5,1817.4,2.1548404]
[1743725524422,5.84367952,1817.5,1817.4,2.1548404]
[1743725524625,5.84368028,1817.5,1817.4,2.1548404]
[1743725526725,4.30863,1817.5,1817.4,2.1548404]
[1743725527626,4.30846,1817.8,1817.5,1.10079]
[1743725527822,3.679,1817.7,1817.6,1.5129]
[1743725528026,3.679,1817.7,1817.6,4.0129]
[1743725528234,3.679,1817.7,1817.6,5.11367]
[1743725528925,4.7797,1817.7,1817.6,5.11367]
[1743725530624,4.7797,1817.7,1817.6,8.32147]
[1743725531120,4.7797,1817.7,1817.6,5.11367]
[1743725531324,4.7797,1817.7,1817.6,4.0129]
[1743725531526,4.7797,1817.7,1817.6,5.11367]
[1743725533220,4.77961,1817.9,1817.8,1.10057]
[1743725533728,3.679,1817.9,1817.8,2.57437]
[1743725535728,4.7108404,1818.1,1818.0,1.10052]
[1743725535920,8.3888404,1818.1,1818.0,1.10052]
[1743725536327,9.4893004,1818.1,1818.0,1.10052]
[1743725536529,8.3888404,1818.1,1818.0,1.10052]
[1743725537322,3.6862404,1818.1,1818.0,1.10052]
[1743725538028,0.0082404,1818.1,1818.0,1.10052]
[1743725538624,0.0082404,1818.1,1818.0,6.80832]
[1743725538824,6.8858,1818.5,1818.1,2.75106]
[1743725539027,6.8858,1818.5,1818.4,1.10028]
[1743725539329,7.6275,1818.7,1818.6,1.10016]
[1743725539628,3.2078,1818.7,1818.6,1.10016]
[1743725540128,3.2078,1818.7,1818.6,1.85776]
[1743725544131,3.2078,1818.7,1818.6,3.98336]
[1743725544727,3.6852404,1818.8,1818.7,1.1001]
[1743725544928,3.6852404,1818.8,1818.7,2.4713]
[1743725547533,6.8930404,1818.8,1818.5,5.9782404]
[1743725547829,4.30796,1818.6,1818.5,0.0082404]
[1743725548022,4.30796,1818.6,1818.1,1.10043]
[1743725548023,1.10038,1818.3,1818.1,1.10043]
[1743725548228,4.77745,1818.2,1818.0,1.10048]
[1743725548421,4.77745,1818.2,1817.7,8.72172]
[1743725548422,1.1006,1817.9,1817.7,7.07066]
[1743725548639,3.677,1817.8,1817.7,1.10066]
[1743725548829,5.0786,1817.8,1817.7,1.10066]
[1743725550630,5.0786,1817.8,1817.6,1.1089604]
[1743725550832,5.0786,1817.8,1817.7,1.1007]
[1743725551131,6.17925,1817.8,1817.6,1.1089604]
[1743725551431,5.0786,1817.8,1817.6,1.1089504]
[1743725551632,5.0786,1817.8,1817.7,1.1007]
[1743725552135,5.0786,1817.8,1817.7,2.6096]
[1743725552833,5.0786,1817.8,1817.7,1.5089]
[1743725553133,5.0786,1817.8,1817.6,0.0082404]
[1743725554534,6.17925,1817.8,1817.6,0.0082404]
[1743725554939,1.4016,1817.8,1817.6,0.0082404]
[1743725555128,3.677,1817.7,1817.6,0.0082404]
[1743725555330,3.677,1817.7,1817.6,1.1090004]
[1743725556230,3.677,1817.7,1817.6,0.0082404]
[1743725556631,1.4016,1817.8,1817.6,1.1090104]
[1743725556928,3.2160404,1817.9,1817.7,2.5167]
[1743725557130,3.677,1817.8,1817.7,1.416]
[1743725557435,3.677,1817.8,1817.7,2.5167]
[1743725557638,3.677,1817.8,1817.7,1.416]
[1743725557838,4.77764,1817.8,1817.7,1.416]
[1743725558726,6.18144,1817.8,1817.7,1.416]
[1743725559334,6.18144,1817.8,1817.7,2.5167]
[1743725559532,4.77764,1817.8,1817.7,1.416]
[1743725561641,1.1007,1817.7,1817.6,0.0082404]
[1743725561837,5.80863415,1817.7,1817.6,0.0082404]
[1743725562834,4.70793415,1817.7,1817.6,0.0082404]
[1743725563037,4.70793415,1817.7,1817.6,1.4245404]
[1743725563237,3.30033415,1817.7,1817.6,1.4245404]
[1743725563537,3.30033753,1817.7,1817.6,2.1317404]
[1743725563737,4.6154,1817.7,1817.6,2.1317404]
[1743725564146,4.70793853,1817.7,1817.6,2.1317404]
[1743725564443,4.70793853,1817.7,1817.6,3.2325104]
[1743725564636,4.6154,1817.7,1817.6,2.1317404]
[1743725564837,4.70793864,1817.7,1817.6,2.1317404]
[1743725565143,4.6154,1817.7,1817.6,2.1317404]
[1743725565343,4.70793878,1817.7,1817.6,3.2325104]
[1743725565542,4.6154,1817.7,1817.6,3.2325104]
[1743725565743,5.7161,1817.7,1817.6,2.1317404]
[1743725565946,5.80863788,1817.7,1817.6,2.1317404]
[1743725567343,5.80863996,1817.7,1817.6,0.0082404]
[1743725567543,6.51143996,1817.7,1817.6,0.0082404]
[1743725567747,3.30033996,1817.7,1817.6,0.0082404]
[1743725567941,4.77767,1817.8,1817.6,1.1090104]
[1743725568238,4.77767,1817.8,1817.7,1.4674]
[1743725568537,6.17197,1817.8,1817.7,1.4674]
[1743725568742,2.49497,1817.8,1817.7,1.4674]
[1743725568941,6.17297,1817.8,1817.7,1.4674]
[1743725569341,3.678,1817.8,1817.7,1.4674]
[1743725569648,4.77864,1817.8,1817.7,2.1904]
[1743725570742,4.77864,1817.8,1817.7,3.2911]
[1743725570944,4.77864,1817.8,1817.7,2.1904]
[1743725573747,4.77864,1817.8,1817.7,3.2911]
[1743725574152,4.77864,1817.8,1817.7,2.1904]
[1743725574553,3.678,1817.8,1817.7,3.2911]
[1743725574850,4.77864,1817.8,1817.7,2.1904]
[1743725575252,1.1007,1817.7,1817.6,0.0082404]
[1743725575451,2.479,1817.7,1817.6,0.0082404]
[1743725575646,2.479,1817.7,1817.6,1.3832404]
[1743725576648,2.479,1817.7,1817.6,0.0082404]
[1743725576851,5.6868,1817.7,1817.6,0.0082404]
[1743725577148,5.77934131,1817.7,1817.6,0.0082404]
[1743725577653,1.10089,1817.4,1817.3,7.07092]
[1743725577848,1.10086,1817.5,1817.4,1.5002]
[1743725578047,6.26956,1817.5,1817.4,2.60109]
[1743725578248,6.26956,1817.5,1817.4,1.5002]
[1743725581763,1.10089,1817.4,1817.3,0.7093404]
[1743725581945,2.57019,1817.4,1817.3,0.0082404]
[1743725582354,3.678,1817.5,1817.3,1.1091504]
[1743725582548,1.10089,1817.4,1817.3,1.1091504]
[1743725582753,1.10089,1817.4,1817.3,0.0082404]
[1743725583055,1.10089,1817.4,1817.3,0.7482404]
[1743725583254,1.10089,1817.4,1817.3,2.1625404]
[1743725583953,9.43757,1817.5,1817.3,2.1625404]
[1743725584159,9.43757,1817.5,1817.4,1.4143]
[1743725585151,9.43757,1817.5,1817.4,2.51519]
[1743725585356,8.3367,1817.5,1817.4,2.51519]
[1743725585554,9.43753,1817.5,1817.4,1.4143]
[1743725585851,9.43753,1817.5,1817.3,1.8491404]
[1743725585852,1.10089,1817.4,1817.3,0.7482404]
[1743725586055,2.58004559,1817.4,1817.3,0.0082404]
[1743725586259,3.28274559,1817.4,1817.3,0.0082404]
[1743725586763,3.28274562,1817.4,1817.3,0.0082404]
[1743725587858,5.78274562,1817.4,1817.3,0.0082404]
[1743725588049,8.75804562,1817.4,1817.3,0.0082404]
[1743725588257,9.46076659,1817.4,1817.3,0.0082404]
[1743725589757,9.46076499,1817.4,1817.3,0.0082404]
[1743725591263,9.46076278,1817.4,1817.3,0.0082404]
[1743725592867,9.46077081,1817.4,1817.3,4e-07]
[1743725593763,2.58007081,1817.4,1817.3,4e-07]
[1743725593963,6.25807081,1817.4,1817.3,4e-07]
[1743725594377,6.25805326,1817.4,1817.3,1.4570004]
[1743725596166,1.19345326,1817.4,1817.3,1.4570004]
[1743725596464,4.87145326,1817.4,1817.3,1.4570004]
[1743725597471,4.87144577,1817.4,1817.3,1.4570004]
[1743725597878,3.77055577,1817.4,1817.3,1.4570004]
[1743725598073,1.10089,1817.4,1817.3,1.4570004]
[1743725598275,4.77889,1817.4,1817.3,1.4570004]
[1743725598781,6.15729,1817.4,1817.3,1.4570004]
[1743725599078,6.24984426,1817.4,1817.3,1.4570004]
[1743725599280,6.24984555,1817.4,1817.3,1.4570004]
[1743725599472,6.15729,1817.4,1817.3,1.4570004]
[1743725600276,6.24984529,1817.4,1817.3,1.4570004]
[1743725600476,6.24984668,1817.4,1817.3,1.4570004]
[1743725601080,1.10089,1817.4,1817.3,1.4570004]
[1743725602485,3.40085705,1817.4,1817.3,1.4570004]
[1743725603482,3.40084932,1817.4,1817.3,1.4570004]
[1743725605179,3.2078,1817.5,1817.3,1.4570004]
[1743725605490,4.77879,1817.6,1817.4,1.10087]
[1743725605696,3.678,1817.6,1817.5,3.32533]
[1743725606286,4.77877,1817.6,1817.5,2.2245]
[1743725608286,1.10089,1817.4,1817.3,4e-07]
[1743725608482,4.30869,1817.4,1817.3,4e-07]
[1743725608983,5.85735074,1817.4,1817.3,4e-07]
[1743725609383,5.85735074,1817.4,1817.3,1.4714004]
[1743725609687,5.76479,1817.4,1817.3,1.4714004]
[1743725609880,5.85735156,1817.4,1817.3,1.4714004]
[1743725611292,5.76479,1817.4,1817.3,1.4714004]
[1743725611582,5.85735134,1817.4,1817.3,1.4714004]
[1743725611987,5.85735134,1817.4,1817.3,4e-07]
[1743725612895,5.76479,1817.4,1817.3,4e-07]
[1743725613186,5.85735179,1817.4,1817.3,4e-07]
[1743725614395,4.40125179,1817.4,1817.3,4e-07]
[1743725614692,4.87144699,1817.4,1817.3,2.1255004]
[1743725614892,4.77889,1817.4,1817.3,2.1255004]
[1743725615687,7.98669,1817.4,1817.3,2.1255004]
[1743725617102,4.30869,1817.4,1817.3,2.1255004]
[1743725617387,7.98669,1817.4,1817.3,2.1255004]
[1743725617895,4.77889,1817.4,1817.3,2.1255004]
[1743725619095,7.98669,1817.4,1817.3,2.1255004]
[1743725619295,3.678,1817.5,1817.3,2.1255004]
[1743725619493,4.77883,1817.5,1817.4,1.5223]
[1743725621783,4.87138298,1817.5,1817.4,1.5223]
[1743725622198,4.87138489,1817.5,1817.4,1.5223]
[1743725622597,4.77883,1817.5,1817.4,1.5223]
[1743725623898,4.87138018,1817.5,1817.4,1.5223]
[1743725624097,6.37398018,1817.5,1817.4,1.5223]
[1743725624587,6.37398018,1817.5,1817.3,0.7426004]
[1743725624588,1.10089,1817.4,1817.3,4e-07]
[1743725624788,6.65514018,1817.4,1817.3,4e-07]
[1743725625993,5.55425814,1817.4,1817.3,4e-07]
[1743725626199,3.677,1817.4,1817.3,2.5389004]
[1743725627399,4.77789,1817.4,1817.3,2.5389004]
[1743725628497,3.677,1817.4,1817.3,2.5389004]
[1743725628897,4.77789,1817.4,1817.3,2.5389004]
[1743725629801,3.677,1817.4,1817.3,2.5389004]
[1743725629997,4.18395,1817.8,1817.6,1.10071]
[1743725629998,4.30847,1817.8,1817.6,1.10071]
[1743725630196,7.98547,1817.8,1817.7,1.4332]
[1743725630500,7.98547,1817.8,1817.7,2.8604]
[1743725630699,7.98547,1817.8,1817.7,3.9611]
[1743725631001,7.98544,1817.8,1817.7,2.8604]
[1743725632501,7.98544,1817.8,1817.7,3.9611]
[1743725632701,6.8848,1817.8,1817.7,2.8604]
[1743725632894,6.8848,1817.8,1817.7,3.9611]
[1743725636790,0.0082404,1817.9,1817.8,1.10064]
[1743725636991,3.6852404,1817.9,1817.8,2.58664]
[1743725637904,6.8930404,1817.9,1817.8,2.58664]
[1743725638705,7.9936204,1817.9,1817.8,2.58664]
[1743725639103,7.9936204,1817.9,1817.8,1.486]
[1743725640003,8.08543466,1817.9,1817.8,1.486]
[1743725640400,1.10064,1817.8,1817.7,1.4332]
[1743725640599,1.1007,1817.7,1817.6,1.378]
[1743725640798,6.4514,1817.7,1817.6,1.378]
[1743725645401,5.3507,1817.7,1817.5,1.82933]
[1743725645702,3.676,1817.6,1817.5,3.24573]
[1743725646302,4.77677,1817.6,1817.5,3.24573]
[1743725646502,6.8838,1817.7,1817.6,1.10077]
[1743725646704,7.9845,1817.7,1817.6,2.58787]
[1743725646907,7.9845,1817.7,1817.6,1.4871]
[1743725647705,7.9845,1817.7,1817.6,2.58787]
[1743725647902,4.7848404,1817.9,1817.6,4.23901]
[1743725648103,3.2078,1818.1,1817.8,1.10064]
[1743725648304,64.7018,1818.3,1817.9,2.9919]
[1743725648504,1.10031,1818.4,1818.3,1.10034]
[1743725648705,3.2078,1818.8,1818.6,1.10014]
[1743725649008,61.485,1818.9,1818.6,1.10014]
[1743725649199,1.10004,1818.8,1818.7,1.4871]
[1743725650201,61.4932404,1818.9,1818.8,1.10004]
[1743725650408,0.0082404,1818.9,1818.8,7.07004]
[1743725650711,0.0082404,1818.9,1818.8,10.27784]
[1743725654415,0.0082404,1818.9,1818.8,10.97354]
[1743725658315,0.0082404,1818.9,1818.8,7.76574]
[1743725660311,61.0168,1819.5,1818.8,12.3735]
[1743725660515,57.809,1819.5,1819.4,1.09968]
[1743725660717,61.483,1819.5,1819.4,1.09968]
[1743725661117,65.79042,1819.5,1819.4,1.09968]
[1743725661321,67.19692,1819.5,1819.4,1.09968]
[1743725662217,66.0973,1819.5,1819.4,1.09968]
[1743725662419,6.8818,1819.5,1819.4,1.09968]
[1743725662719,0.0082404,1819.6,1819.5,1.09962]
[1743725663618,3.9361,1819.9,1819.5,1.09962]
[1743725663813,3.9361,1819.9,1819.8,1.09943]
[1743725664013,3.9361,1819.9,1819.7,1.09946]
[1743725664220,3.9361,1819.9,1819.8,2.56573]
[1743725664510,5.406,1819.9,1819.8,1.4663]
[1743725665425,6.50537,1819.9,1819.8,1.4663]
[1743725667025,5.406,1819.9,1819.8,1.4663]
[1743725667418,6.50537,1819.9,1819.8,1.4663]
[1743725668317,1.09943,1819.8,1819.7,0.0082404]
[1743725668517,2.60033,1819.8,1819.7,0.0082404]
[1743725674426,4.09262073,1819.8,1819.3,5.97]
[1743725674725,1.09968,1819.4,1819.3,5.97]
[1743725674920,1.09974,1819.3,1819.2,2.1365]
[1743725675124,2.54774,1819.3,1819.2,2.1365]
[1743725675530,2.54774,1819.3,1819.2,1.4373]
[1743725676319,1.0998,1819.2,1819.1,0.0082404]
[1743725676520,5.7556,1819.2,1819.1,0.0082404]
[1743725676724,1.1001,1818.7,1818.6,0.7116]
[1743725677331,1.10016,1818.6,1818.5,0.7489]
[1743725677629,4.30796,1818.6,1818.5,0.7489]
[1743725678020,1.10016,1818.6,1818.5,0.7489]
[1743725678527,1.10022,1818.5,1818.4,1.4437404]
[1743725679027,4.77222,1818.5,1818.4,1.4437404]
[1743725679633,4.77222,1818.5,1818.4,0.0082404]
[1743725679924,6.17292,1818.5,1818.4,0.0082404]
[1743725682732,1.1004,1818.2,1818.1,5.97]
[1743725682938,1.10046,1818.1,1818.0,1.3798]
[1743725683734,3.672,1818.2,1818.0,1.3798]
[1743725683928,3.672,1818.2,1818.0,2.48031]
[1743725684124,3.672,1818.2,1818.1,1.10046]
[1743725684528,4.7724,1818.2,1818.0,2.48028]
[1743725684729,1.10046,1818.1,1818.0,1.3798]
[1743725686136,2.61966,1818.1,1818.0,1.3798]
[1743725687033,1.10064,1817.8,1817.7,0.7569]
[1743725687229,4.77364,1817.8,1817.7,2.2508]
[1743725689233,4.77364,1817.8,1817.7,3.3515]
[1743725689828,4.77364,1817.8,1817.7,2.2508]
[1743725690038,3.673,1817.8,1817.7,3.3515]
[1743725690237,4.77364,1817.8,1817.7,3.3515]
[1743725691735,3.673,1817.8,1817.7,3.3515]
[1743725694031,4.77364,1817.8,1817.7,1.4939]
[1743725694236,1.10077,1817.6,1817.5,1.84313]
[1743725694432,1.4873,1817.7,1817.6,1.10077]
[1743725694641,2.5962504,1817.7,1817.6,2.56027]
[1743725695236,0.0082404,1817.7,1817.6,2.56027]
[1743725698135,1.3956404,1817.7,1817.6,2.56027]
[1743725700728,1.3956404,1817.7,1817.6,1.4595]
[1743725701033,1.3956404,1817.7,1817.6,2.56027]
[1743725701233,1.10077,1817.6,1817.5,0.7423]
[1743725701428,1.10083,1817.5,1817.4,1.3961]
[1743725701630,1.10098,1817.3,1817.1,0.7204]
[1743725701829,8.4039,1817.2,1817.0,1.10108]
[1743725702033,2.62317,1817.1,1816.9,1.10114]
[1743725702243,4.7299,1817.0,1816.9,1.3961]
[1743725702434,5.83103,1817.0,1816.9,1.3961]
[1743725702635,5.4847,1817.0,1816.9,1.3961]
[1743725703741,6.58583,1817.0,1816.9,1.3961]
[1743725704137,3.37803,1817.0,1816.9,1.3961]
[1743725705046,2.2769,1817.0,1816.9,1.3961]
[1743725705341,3.674,1817.2,1817.1,1.10107]
[1743725705743,3.674,1817.2,1817.0,1.4904]
[1743725705934,4.77501,1817.2,1817.1,1.10102]
[1743725706538,4.6379,1817.4,1817.3,1.1009]
[1743725706539,1.10089,1817.4,1817.3,1.1009]
[1743725706745,1.10096,1817.3,1817.2,4.02456]
[1743725707848,4.77594,1817.4,1817.3,1.10095]
[1743725708041,4.77594,1817.4,1817.3,2.49725]
[1743725708647,3.675,1817.4,1817.3,2.49725]
[1743725708843,4.3086,1817.6,1817.5,1.10083]
[1743725709046,3.675,1817.6,1817.5,1.10083]
[1743725709240,1.1089604,1817.7,1817.6,1.10077]
[1743725709241,0.0082404,1817.7,1817.6,1.10077]
[1743725709543,1.10062,1817.9,1817.7,1.10066]
[1743725709750,4.30838,1817.9,1817.8,1.3963]
[1743725710349,3.2078,1817.9,1817.8,2.49694]
[1743725710547,1.4612404,1818.0,1817.9,1.10058]
[1743725710751,1.4612404,1818.0,1817.9,2.58008]
[1743725711043,0.0082404,1818.0,1817.9,2.58008]
[1743725711444,3.6832404,1818.0,1817.9,2.58008]
[1743725713452,4.7837604,1818.0,1817.9,1.4795]
[1743725713655,1.10064,1817.8,1817.7,0.0082404]
[1743725713861,1.10074,1817.7,1817.5,3.2078]
[1743725714055,5.1069,1817.6,1817.5,4.30863]
[1743725714960,3.675,1817.6,1817.5,4.30863]
[1743725715853,4.77577,1817.6,1817.5,3.2078]
[1743725716049,3.675,1817.6,1817.5,3.2078]
[1743725716253,3.675,1817.6,1817.5,5.73633]
[1743725717062,4.77577,1817.6,1817.5,4.6355]
[1743725717560,4.77577,1817.6,1817.5,5.73633]
[1743725717561,3.675,1817.6,1817.5,5.73633]
[1743725717761,4.77577,1817.6,1817.5,5.73633]
[1743725718067,9.37277,1817.6,1817.5,1.4277]
[1743725718261,1.10089,1817.4,1817.3,1.10094]
[1743725719056,1.3892,1817.5,1817.2,1.4022]
[1743725719265,1.1009,1817.4,1817.3,1.10091]
[1743725719658,2.49007,1817.5,1817.4,1.10089]
[1743725719862,1.3892,1817.5,1817.4,1.10089]
[1743725720162,2.49007,1817.5,1817.4,1.10089]
[1743725720351,1.3892,1817.5,1817.4,1.10089]
[1743725720555,2.49007,1817.5,1817.2,4.1547]
[1743725720755,2.49007,1817.5,1817.4,1.10089]
[1743725721170,1.10089,1817.4,1817.3,2.53652]
[1743725721357,5.70803,1817.4,1817.3,1.10095]
[1743725721554,6.42863,1817.4,1817.3,1.10095]
[1743725721860,1.10095,1817.3,1817.2,2.53656]
[1743725722060,6.17425,1817.3,1817.2,2.53656]
[1743725722457,1.10101,1817.2,1817.1,1.10104]
[1743725722762,2.50031,1817.2,1817.1,1.10104]
[1743725722952,9.85967,1817.2,1816.7,7.4112]
[1743725723152,1.3717,1817.1,1816.9,1.10119]
[1743725723356,3.674,1817.0,1816.9,1.10119]
[1743725723550,3.2078,1817.2,1817.1,1.10107]
[1743725723757,3.674,1817.2,1817.1,1.10107]
[1743725724168,3.674,1817.2,1817.1,3.90347]
[1743725724555,3.674,1817.2,1817.1,7.11127]
[1743725724856,1.10083,1817.5,1817.4,1.10089]
[1743725725056,2.4725,1817.6,1817.5,1.10083]
[1743725725263,4.7758,1817.6,1817.5,1.10083]
[1743725725456,6.39036,1817.7,1817.5,1.10077]
[1743725725656,4.77577,1817.6,1817.5,1.10083]
[1743725725859,4.77577,1817.6,1817.4,1.10086]
[1743725726164,4.77579,1817.6,1817.4,1.10086]
[1743725727066,3.675,1817.7,1817.5,2.75207]
[1743725727361,3.675,1817.7,1817.6,1.80837]
[1743725727759,4.7757,1817.7,1817.6,0.7076]
[1743725728062,3.675,1817.7,1817.6,1.80837]
[1743725728671,4.7757,1817.7,1817.6,1.80837]
[1743725729264,1.10088,1817.5,1817.2,8.72252]
[1743725729565,3.675,1817.4,1817.3,1.10095]
[1743725730764,4.77589,1817.4,1817.3,1.10095]
[1743725731061,1.10095,1817.3,1817.2,7.07096]
[1743725731257,2.53705,1817.3,1817.2,7.07096]
[1743725731567,2.53705,1817.3,1817.2,1.10096]
[1743725731757,1.10107,1817.1,1817.0,1.10109]
[1743725731964,4.77507,1817.1,1817.0,1.10109]
[1743725732765,6.16767,1817.1,1817.0,1.10109]
[1743725733063,5.0666,1817.1,1816.8,0.7426]
[1743725733365,1.10118,1817.0,1816.9,1.10117]
[1743725733562,2.49378,1817.0,1816.9,1.10117]
[1743725734263,1.10119,1816.9,1816.8,1.1012]
[1743725734459,2.49379,1816.9,1816.8,1.1012]
[1743725734655,1.3926,1816.9,1816.8,1.1012]
[1743725734855,2.49379,1816.9,1816.8,1.1012]
[1743725735060,1.3926,1816.9,1816.8,1.1012]
[1743725736067,0.0082404,1817.0,1816.9,1.10119]
[1743725736261,1.1093704,1817.0,1816.9,1.10119]
[1743725736457,2.6008704,1817.0,1816.9,1.10119]
[1743725736663,1.4997404,1817.0,1816.9,1.10119]
[1743725737163,0.0082404,1817.0,1816.9,1.10119]
[1743725737365,0.0082404,1817.0,1816.9,4.30899]
[1743725738164,0.0082404,1817.0,1816.9,8.18169]
[1743725739462,0.0082404,1817.0,1816.9,2.47389]
[1743725742266,0.0082404,1817.0,1816.9,5.68169]
[1743725742467,0.0082404,1817.0,1816.9,2.47389]
[1743725742866,1.1093704,1817.0,1816.9,2.47389]
[1743725743071,0.0082404,1817.0,1816.9,2.47389]
[1743725743971,0.0082404,1817.0,1816.9,5.68169]
[1743725745574,3.9377,1817.5,1817.4,1.10089]
[1743725745773,7.6127,1817.5,1817.4,1.10089]
[1743725747072,7.6127,1817.5,1817.4,1.83759]
[1743725747370,0.0082404,1817.6,1817.5,1.10083]
[1743725747569,3.6832404,1817.6,1817.5,3.19313]
[1743725752178,3.6832404,1817.6,1817.5,6.40093]
[1743725752179,0.0082404,1817.6,1817.5,6.40093]
[1743725755379,58.5091,1818.0,1817.9,1.10058]
[1743725755580,62.1831,1818.0,1817.9,1.10058]
[1743725756379,1.1007,1817.7,1817.6,5.97]
[1743725756570,9.63361,1817.7,1817.3,1.1091704]
[1743725756767,4.30864,1817.5,1817.3,1.1091704]
[1743725756976,5.1093,1817.4,1817.3,1.1091704]
[1743725760480,0.7487,1817.6,1817.5,1.10083]
[1743725760780,4.5145279,1817.6,1817.5,1.10083]
[1743725760981,8.8230989,1817.6,1817.5,1.10083]
[1743725761183,8.8230989,1817.6,1817.3,4.1503504]
[1743725761184,1.10083,1817.5,1817.3,0.0082404]
[1743725761382,2.48183,1817.5,1817.3,1.1091504]
[1743725761682,1.381,1817.5,1817.3,1.1091504]
[1743725762082,2.48186,1817.5,1817.4,1.10089]
[1743725762586,2.57369844,1817.5,1817.4,1.10089]
[1743725762788,1.47283844,1817.5,1817.4,1.10089]
[1743725762977,1.381,1817.5,1817.4,1.10089]
[1743725763886,7.6305,1817.6,1817.5,1.10083]
[1743725763887,3.9565,1817.6,1817.5,1.10083]